[Event "*** SCC Grand Prix: Titled Tuesday Blitz"]
[Site "Chess.com"]
[Date "2020.07.14"]
[Round "3"]
[White "AleksanderHnydiuk"]
[Black "Steven_Rojas"]
[Result "1-0"]
[WhiteElo "2585"]
[BlackElo "2396"]
[TimeControl "180+1"]
[EndTime "10:29:28 PDT"]
[Termination "AleksanderHnydiuk won by resignation"]

1. Nf3 {[%clk 0:03:00.9]} 1... Nf6 {[%clk 0:02:59.5]} 2. c4 {[%clk 0:03:00.2]}
2... e6 {[%clk 0:02:59.1]} 3. g3 {[%clk 0:03:00]} 3... d5 {[%clk 0:02:59.5]} 4.
d4 {[%clk 0:03:00.2]} 4... Be7 {[%clk 0:02:58.6]} 5. Bg2 {[%clk 0:03:00.1]} 5...
O-O {[%clk 0:02:59.2]} 6. Qc2 {[%clk 0:02:59.9]} 6... dxc4 {[%clk 0:02:53.9]} 7.
Qxc4 {[%clk 0:03:00.8]} 7... a6 {[%clk 0:02:51.8]} 8. Qc2 {[%clk 0:03:00.8]}
8... b5 {[%clk 0:02:43.1]} 9. Ne5 {[%clk 0:03:00.4]} 9... Ra7 {[%clk 0:02:43.6]}
10. O-O {[%clk 0:02:59.2]} 10... Bb7 {[%clk 0:02:43.4]} 11. Bxb7 {[%clk
0:02:56.4]} 11... Rxb7 {[%clk 0:02:44.3]} 12. Rd1 {[%clk 0:02:53.5]} 12... Nfd7
{[%clk 0:02:20.6]} 13. Nxd7 {[%clk 0:01:51.4]} 13... Nxd7 {[%clk 0:02:21.5]} 14.
Nc3 {[%clk 0:01:50.2]} 14... Nf6 {[%clk 0:02:01.3]} 15. Bg5 {[%clk 0:01:48.1]}
15... Nd5 {[%clk 0:01:02.8]} 16. Bxe7 {[%clk 0:01:46.9]} 16... Qxe7 {[%clk
0:01:03.2]} 17. Rac1 {[%clk 0:01:39.5]} 17... Nxc3 {[%clk 0:00:58.9]} 18. Qxc3
{[%clk 0:01:38.8]} 18... Rc8 {[%clk 0:00:57.8]} 19. Qc6 {[%clk 0:01:37.2]} 19...
Ra7 {[%clk 0:00:57.7]} 20. e3 {[%clk 0:01:25]} 20... Kf8 {[%clk 0:00:56.1]} 21.
d5 {[%clk 0:01:20.3]} 21... exd5 {[%clk 0:00:45.5]} 22. Rxd5 {[%clk 0:01:21.2]}
22... Raa8 {[%clk 0:00:34.4]} 23. Rd7 {[%clk 0:01:17.3]} 23... Qe5 {[%clk
0:00:31.1]} 24. Rcd1 {[%clk 0:01:12.3]} 24... Qxb2 {[%clk 0:00:23.9]} 25. Rxc7
{[%clk 0:00:56.7]} 25... Rd8 {[%clk 0:00:20]} 26. Rcd7 {[%clk 0:00:43.3]} 26...
Rxd7 {[%clk 0:00:10.3]} 27. Qxa8+ {[%clk 0:00:42.3]} 27... Ke7 {[%clk
0:00:10.7]} 28. Qe4+ {[%clk 0:00:40.8]} 28... Kd8 {[%clk 0:00:11.2]} 29. Qa8+
{[%clk 0:00:38.6]} 29... Ke7 {[%clk 0:00:11]} 30. Rxd7+ {[%clk 0:00:38.4]} 30...
Kxd7 {[%clk 0:00:11.9]} 31. Qa7+ {[%clk 0:00:38.5]} 31... Ke8 {[%clk 0:00:10.8]}
32. Qxa6 {[%clk 0:00:37.1]} 32... Qb1+ {[%clk 0:00:10]} 33. Kg2 {[%clk
0:00:37.4]} 33... Qe4+ {[%clk 0:00:10.6]} 34. Kf1 {[%clk 0:00:36.7]} 34... Qd3+
{[%clk 0:00:08.2]} 35. Ke1 {[%clk 0:00:36.8]} 35... Qb1+ {[%clk 0:00:07.2]} 36.
Kd2 {[%clk 0:00:36.6]} 36... Qb2+ {[%clk 0:00:07.1]} 37. Kd3 {[%clk 0:00:36.9]}
37... Qxf2 {[%clk 0:00:07]} 38. Qxb5+ {[%clk 0:00:36]} 38... Ke7 {[%clk
0:00:06]} 39. Qc5+ {[%clk 0:00:36.1]} 39... Kd7 {[%clk 0:00:05.9]} 40. Qd5+
{[%clk 0:00:36]} 40... Ke7 {[%clk 0:00:06.3]} 41. Qe5+ {[%clk 0:00:31.5]} 41...
Kf8 {[%clk 0:00:02.6]} 42. Qb8+ {[%clk 0:00:29.6]} 42... Ke7 {[%clk 0:00:02.7]}
43. Qb4+ {[%clk 0:00:29.5]} 43... Ke8 {[%clk 0:00:02.8]} 44. Qa4+ {[%clk
0:00:28.9]} 44... Ke7 {[%clk 0:00:03.1]} 45. Qb4+ {[%clk 0:00:26.9]} 45... Ke8
{[%clk 0:00:03.5]} 46. a4 {[%clk 0:00:26.9]} 46... Qf1+ {[%clk 0:00:03.3]} 47.
Kd4 {[%clk 0:00:26.3]} 47... Qf6+ {[%clk 0:00:03.1]} 48. Kc4 {[%clk 0:00:25.5]}
48... Qe6+ {[%clk 0:00:03.5]} 49. Kb5 {[%clk 0:00:25]} 49... Qd5+ {[%clk
0:00:03.2]} 50. Kb6 {[%clk 0:00:24.4]} 50... Qe6+ {[%clk 0:00:02.9]} 51. Ka7
{[%clk 0:00:23.2]} 51... Qxe3+ {[%clk 0:00:03.1]} 52. Ka6 {[%clk 0:00:22.6]}
52... Qe6+ {[%clk 0:00:03.2]} 53. Qb6 {[%clk 0:00:22.1]} 53... Qc4+ {[%clk
0:00:03.3]} 54. Qb5+ {[%clk 0:00:22.1]} 54... Qxb5+ {[%clk 0:00:03.8]} 55. axb5
{[%clk 0:00:20.8]} 55... Kd7 {[%clk 0:00:04.5]} 56. b6 {[%clk 0:00:20.5]} 56...
Kc8 {[%clk 0:00:05.4]} 57. Ka7 {[%clk 0:00:20.2]} 57... Kd7 {[%clk 0:00:05.7]}
1-0

[Event "*** SCC Grand Prix: Titled Tuesday Blitz"]
[Site "Chess.com"]
[Date "2020.07.14"]
[Round "3"]
[White "Oleksandr_Bortnyk"]
[Black "Paladin61"]
[Result "1-0"]
[WhiteElo "2938"]
[BlackElo "2654"]
[TimeControl "180+1"]
[EndTime "10:29:29 PDT"]
[Termination "Oleksandr_Bortnyk won by resignation"]

1. e4 {[%clk 0:03:00.9]} 1... c5 {[%clk 0:02:59.8]} 2. c3 {[%clk 0:02:59.1]}
2... d5 {[%clk 0:02:57.2]} 3. exd5 {[%clk 0:02:59.7]} 3... Qxd5 {[%clk
0:02:57.4]} 4. d4 {[%clk 0:03:00.6]} 4... Nc6 {[%clk 0:02:57.8]} 5. Be3 {[%clk
0:02:59.6]} 5... Bf5 {[%clk 0:02:50.1]} 6. dxc5 {[%clk 0:02:59.2]} 6... Qxd1+
{[%clk 0:02:47.1]} 7. Kxd1 {[%clk 0:03:00.1]} 7... Nf6 {[%clk 0:02:46.7]} 8. Nf3
{[%clk 0:02:57.6]} 8... O-O-O+ {[%clk 0:02:41.5]} 9. Nbd2 {[%clk 0:02:57.2]}
9... Nd5 {[%clk 0:02:33.9]} 10. Bb5 {[%clk 0:02:56.5]} 10... f6 {[%clk
0:02:22.9]} 11. Rc1 {[%clk 0:02:17]} 11... e5 {[%clk 0:02:18.9]} 12. b4 {[%clk
0:02:15.9]} 12... g5 {[%clk 0:02:15.8]} 13. h3 {[%clk 0:02:13.4]} 13... h5
{[%clk 0:02:14.5]} 14. Ke2 {[%clk 0:02:11]} 14... Be7 {[%clk 0:02:03.7]} 15. Nc4
{[%clk 0:01:56.9]} 15... Kc7 {[%clk 0:01:48.6]} 16. Rhd1 {[%clk 0:01:50.3]}
16... Be6 {[%clk 0:01:26.5]} 17. Nfd2 {[%clk 0:01:37.7]} 17... Bf5 {[%clk
0:00:58.4]} 18. f3 {[%clk 0:00:37.1]} 18... g4 {[%clk 0:00:54]} 19. h4 {[%clk
0:00:37.3]} 19... Rhg8 {[%clk 0:00:52.9]} 20. Kf2 {[%clk 0:00:31.4]} 20... gxf3
{[%clk 0:00:47.5]} 21. gxf3 {[%clk 0:00:32.3]} 21... Bh3 {[%clk 0:00:47.2]} 22.
Rg1 {[%clk 0:00:31.2]} 22... f5 {[%clk 0:00:44.3]} 23. Bg5 {[%clk 0:00:28.7]}
23... Bxg5 {[%clk 0:00:33]} 24. hxg5 {[%clk 0:00:27.3]} 24... Nf4 {[%clk
0:00:26.9]} 25. Nd6 {[%clk 0:00:27.5]} 25... h4 {[%clk 0:00:22.7]} 26. Bc4
{[%clk 0:00:22.9]} 26... Rg7 {[%clk 0:00:19]} 27. Rce1 {[%clk 0:00:22.4]} 27...
a6 {[%clk 0:00:13.6]} 28. a4 {[%clk 0:00:22.1]} 28... Rh8 {[%clk 0:00:12.5]} 29.
Re3 {[%clk 0:00:18.1]} 29... Bg2 {[%clk 0:00:10.2]} 30. Nf7 {[%clk 0:00:15.8]}
30... Rf8 {[%clk 0:00:05.4]} 31. Rxg2 {[%clk 0:00:10.8]} 31... Nxg2 {[%clk
0:00:05.5]} 32. Kxg2 {[%clk 0:00:11.7]} 32... Rfxf7 {[%clk 0:00:05.6]} 33. Bxf7
{[%clk 0:00:12.6]} 33... Rxf7 {[%clk 0:00:05.8]} 34. Kh3 {[%clk 0:00:13]} 34...
Rh7 {[%clk 0:00:06]} 35. Nc4 {[%clk 0:00:13.3]} 35... e4 {[%clk 0:00:03.7]} 36.
fxe4 {[%clk 0:00:12.8]} 36... fxe4 {[%clk 0:00:03.2]} 37. Rxe4 {[%clk
0:00:13.7]} 37... Kd7 {[%clk 0:00:02.8]} 38. Rxh4 {[%clk 0:00:12.4]} 38... Rf7
{[%clk 0:00:02.7]} 39. Rg4 {[%clk 0:00:11.9]} 39... Rf3+ {[%clk 0:00:02.5]} 40.
Rg3 {[%clk 0:00:12.3]} 40... Rf4 {[%clk 0:00:02.3]} 41. Nd6 {[%clk 0:00:11.7]}
41... Ne5 {[%clk 0:00:02.6]} 42. g6 {[%clk 0:00:11.6]} 42... Rf1 {[%clk
0:00:01.8]} 43. g7 {[%clk 0:00:11.9]} 1-0

[Event "*** SCC Grand Prix: Titled Tuesday Blitz"]
[Site "Chess.com"]
[Date "2020.07.14"]
[Round "3"]
[White "tan275"]
[Black "SilviusTiberius"]
[Result "0-1"]
[WhiteElo "2275"]
[BlackElo "2490"]
[TimeControl "180+1"]
[EndTime "10:29:29 PDT"]
[Termination "SilviusTiberius won by resignation"]

1. d4 {[%clk 0:03:00.9]} 1... Nf6 {[%clk 0:02:59.1]} 2. c4 {[%clk 0:03:00.8]}
2... g6 {[%clk 0:02:59.2]} 3. g3 {[%clk 0:03:00.7]} 3... Bg7 {[%clk 0:02:59.4]}
4. Bg2 {[%clk 0:03:01.3]} 4... O-O {[%clk 0:02:59.9]} 5. Nf3 {[%clk 0:03:01.5]}
5... d6 {[%clk 0:03:00.2]} 6. Nc3 {[%clk 0:03:00.5]} 6... Nc6 {[%clk 0:03:00.4]}
7. O-O {[%clk 0:03:00.4]} 7... Rb8 {[%clk 0:03:00.4]} 8. b3 {[%clk 0:02:56]}
8... a6 {[%clk 0:03:00]} 9. Bb2 {[%clk 0:02:54.8]} 9... b5 {[%clk 0:02:57.4]}
10. d5 {[%clk 0:02:31.7]} 10... Na5 {[%clk 0:02:55.5]} 11. cxb5 {[%clk
0:02:27.6]} 11... axb5 {[%clk 0:02:56.4]} 12. Qd3 {[%clk 0:02:19.1]} 12... Bf5
{[%clk 0:02:44]} 13. Qd2 {[%clk 0:02:05.4]} 13... b4 {[%clk 0:02:38.1]} 14. Na4
{[%clk 0:02:00.6]} 14... Be4 {[%clk 0:01:58.5]} 15. Rac1 {[%clk 0:01:45.3]}
15... Nxd5 {[%clk 0:01:42.5]} 16. Bxg7 {[%clk 0:01:39.4]} 16... Kxg7 {[%clk
0:01:43]} 17. Qd4+ {[%clk 0:01:34.4]} 17... Nf6 {[%clk 0:01:42.6]} 18. Rfd1
{[%clk 0:00:51.3]} 18... c5 {[%clk 0:01:36.9]} 19. Qb2 {[%clk 0:00:39.5]} 19...
Qc7 {[%clk 0:01:30.9]} 20. g4 {[%clk 0:00:28.1]} 20... Kg8 {[%clk 0:01:25]} 21.
g5 {[%clk 0:00:26.6]} 21... Nh5 {[%clk 0:01:24.9]} 22. e3 {[%clk 0:00:20.2]}
22... Qb7 {[%clk 0:01:22.8]} 23. Ne1 {[%clk 0:00:19.2]} 23... f5 {[%clk
0:01:10.3]} 24. f3 {[%clk 0:00:18.1]} 24... Bc6 {[%clk 0:01:08.7]} 25. Kf2
{[%clk 0:00:17]} 25... f4 {[%clk 0:01:02.5]} 26. e4 {[%clk 0:00:16.5]} 26... Qa7
{[%clk 0:00:44.7]} 27. Bh3 {[%clk 0:00:15]} 27... Ng7 {[%clk 0:00:32.5]} 28. Kg2
{[%clk 0:00:12.6]} 28... c4 {[%clk 0:00:27.2]} 29. e5 {[%clk 0:00:08]} 29... c3
{[%clk 0:00:20.4]} 30. Qe2 {[%clk 0:00:07.7]} 30... Bxa4 {[%clk 0:00:19.2]} 31.
bxa4 {[%clk 0:00:07.1]} 31... Qe3 {[%clk 0:00:17.6]} 32. Qxe3 {[%clk 0:00:06.6]}
32... fxe3 {[%clk 0:00:18.5]} 33. Nd3 {[%clk 0:00:06.4]} 33... Rfc8 {[%clk
0:00:16.3]} 34. exd6 {[%clk 0:00:05.8]} 34... exd6 {[%clk 0:00:15.5]} 35. Re1
{[%clk 0:00:06.7]} 35... Rc4 {[%clk 0:00:15]} 36. Rxe3 {[%clk 0:00:06.8]} 36...
b3 {[%clk 0:00:15.2]} 37. axb3 {[%clk 0:00:06.5]} 37... Nxb3 {[%clk 0:00:15.9]}
38. Rc2 {[%clk 0:00:07.4]} 38... Nd4 {[%clk 0:00:15.5]} 39. Rc1 {[%clk 0:00:07]}
39... c2 {[%clk 0:00:15.8]} 40. Ree1 {[%clk 0:00:03.9]} 40... Nh5 {[%clk
0:00:12.4]} 41. Re2 {[%clk 0:00:02.4]} 41... Rb3 {[%clk 0:00:11.8]} 42. Rexc2
{[%clk 0:00:02.3]} 42... Nxc2 {[%clk 0:00:11.2]} 43. Be6+ {[%clk 0:00:01.8]}
43... Kg7 {[%clk 0:00:10.9]} 44. Bxc4 {[%clk 0:00:02.7]} 44... Rc3 {[%clk
0:00:10.1]} 45. Rxc2 {[%clk 0:00:03.6]} 45... Rxc2+ {[%clk 0:00:09.8]} 46. Kf1
{[%clk 0:00:01.7]} 46... Rxc4 {[%clk 0:00:10.2]} 0-1

[Event "*** SCC Grand Prix: Titled Tuesday Blitz"]
[Site "Chess.com"]
[Date "2020.07.14"]
[Round "3"]
[White "TigrVShlyape"]
[Black "Undisputed92"]
[Result "1-0"]
[WhiteElo "2869"]
[BlackElo "2616"]
[TimeControl "180+1"]
[EndTime "10:29:30 PDT"]
[Termination "TigrVShlyape won by resignation"]

1. d4 {[%clk 0:03:00.9]} 1... d5 {[%clk 0:02:58.1]} 2. Nf3 {[%clk 0:02:59.6]}
2... c6 {[%clk 0:02:57.9]} 3. Bf4 {[%clk 0:02:58]} 3... g6 {[%clk 0:02:56.9]} 4.
h3 {[%clk 0:02:51.7]} 4... Bg7 {[%clk 0:02:56.9]} 5. e3 {[%clk 0:02:51.9]} 5...
Nf6 {[%clk 0:02:53.1]} 6. c4 {[%clk 0:02:47.1]} 6... O-O {[%clk 0:02:50.9]} 7.
Nc3 {[%clk 0:02:45.8]} 7... a5 {[%clk 0:02:44.3]} 8. Be2 {[%clk 0:02:37.3]} 8...
dxc4 {[%clk 0:02:39.5]} 9. Bxc4 {[%clk 0:02:36.9]} 9... Nbd7 {[%clk 0:02:39.7]}
10. a4 {[%clk 0:02:31.4]} 10... Nb6 {[%clk 0:02:39.5]} 11. Bb3 {[%clk
0:02:20.6]} 11... Bf5 {[%clk 0:02:37.6]} 12. O-O {[%clk 0:02:18.6]} 12... Ne4
{[%clk 0:02:35.3]} 13. Be5 {[%clk 0:02:07.4]} 13... Nxc3 {[%clk 0:02:27.4]} 14.
bxc3 {[%clk 0:02:04.1]} 14... Qc8 {[%clk 0:02:16.5]} 15. Qe2 {[%clk 0:01:39.1]}
15... Be6 {[%clk 0:02:09.3]} 16. Rfb1 {[%clk 0:01:37]} 16... Bxb3 {[%clk
0:01:42.8]} 17. Rxb3 {[%clk 0:01:35.1]} 17... Nd7 {[%clk 0:01:43.7]} 18. Bh2
{[%clk 0:01:25.2]} 18... b6 {[%clk 0:01:35.3]} 19. Rab1 {[%clk 0:01:20.4]} 19...
Qa6 {[%clk 0:01:35.3]} 20. Qxa6 {[%clk 0:01:07.5]} 20... Rxa6 {[%clk 0:01:36.2]}
21. Nd2 {[%clk 0:01:06.3]} 21... Rc8 {[%clk 0:01:28.8]} 22. Kf1 {[%clk
0:00:58.8]} 22... b5 {[%clk 0:01:01.7]} 23. axb5 {[%clk 0:00:55.1]} 23... cxb5
{[%clk 0:01:02.6]} 24. Rxb5 {[%clk 0:00:55.1]} 24... Rxc3 {[%clk 0:01:02.1]} 25.
Rb7 {[%clk 0:00:53.7]} 25... Nf6 {[%clk 0:00:50.4]} 26. Rxe7 {[%clk 0:00:31.2]}
26... Bf8 {[%clk 0:00:49.9]} 27. Rb8 {[%clk 0:00:20.6]} 27... Kg7 {[%clk
0:00:49.7]} 28. Rc7 {[%clk 0:00:18.7]} 28... Rxc7 {[%clk 0:00:43.2]} 29. Bxc7
{[%clk 0:00:18.2]} 29... a4 {[%clk 0:00:43.7]} 30. Be5 {[%clk 0:00:14.7]} 30...
a3 {[%clk 0:00:40.4]} 31. Rb1 {[%clk 0:00:13.7]} 31... a2 {[%clk 0:00:38.7]} 32.
Ra1 {[%clk 0:00:13.8]} 32... Be7 {[%clk 0:00:20.6]} 33. Ne4 {[%clk 0:00:13.9]}
33... g5 {[%clk 0:00:21.1]} 34. Ke2 {[%clk 0:00:11.1]} 34... Kg6 {[%clk
0:00:20.9]} 35. Nxf6 {[%clk 0:00:10.9]} 35... Bxf6 {[%clk 0:00:21.7]} 36. Bxf6
{[%clk 0:00:11.2]} 36... Kxf6 {[%clk 0:00:22.6]} 37. Kd3 {[%clk 0:00:11.6]}
37... h5 {[%clk 0:00:21.7]} 38. Kc3 {[%clk 0:00:11.6]} 38... Kg6 {[%clk
0:00:18.3]} 39. Kb3 {[%clk 0:00:11.1]} 39... Rb6+ {[%clk 0:00:18.2]} 40. Kxa2
{[%clk 0:00:11.3]} 40... Rf6 {[%clk 0:00:18.3]} 41. Rf1 {[%clk 0:00:09.5]} 41...
g4 {[%clk 0:00:18.6]} 42. hxg4 {[%clk 0:00:09.4]} 42... hxg4 {[%clk 0:00:19.5]}
43. Kb3 {[%clk 0:00:09.6]} 43... Kf5 {[%clk 0:00:20]} 44. f3 {[%clk 0:00:08.6]}
44... Re6 {[%clk 0:00:19]} 45. e4+ {[%clk 0:00:07.6]} 45... Kf4 {[%clk
0:00:18.5]} 46. Kc4 {[%clk 0:00:08]} 46... g3 {[%clk 0:00:17.5]} 47. d5 {[%clk
0:00:06.5]} 47... Ra6 {[%clk 0:00:17.1]} 48. Rd1 {[%clk 0:00:05.3]} 48... Ra2
{[%clk 0:00:16.8]} 49. d6 {[%clk 0:00:05.2]} 49... Ra8 {[%clk 0:00:15.5]} 50. d7
{[%clk 0:00:05.2]} 50... Rd8 {[%clk 0:00:15.6]} 51. Kc5 {[%clk 0:00:05.6]} 51...
Ke3 {[%clk 0:00:16.2]} 52. Kc6 {[%clk 0:00:05.9]} 52... Ke2 {[%clk 0:00:16.9]}
53. Ra1 {[%clk 0:00:05.4]} 53... Kf2 {[%clk 0:00:17]} 54. Ra2+ {[%clk
0:00:05.8]} 1-0

[Event "*** SCC Grand Prix: Titled Tuesday Blitz"]
[Site "Chess.com"]
[Date "2020.07.14"]
[Round "3"]
[White "DonPreuss"]
[Black "TokChess"]
[Result "0-1"]
[WhiteElo "2191"]
[BlackElo "2425"]
[TimeControl "180+1"]
[EndTime "10:29:30 PDT"]
[Termination "TokChess won by checkmate"]

1. d4 {[%clk 0:03:00.9]} 1... e6 {[%clk 0:02:58.5]} 2. e4 {[%clk 0:03:00.6]}
2... d5 {[%clk 0:02:56.8]} 3. Nc3 {[%clk 0:03:01.1]} 3... Nc6 {[%clk 0:02:55]}
4. exd5 {[%clk 0:02:56]} 4... exd5 {[%clk 0:02:54.3]} 5. Be3 {[%clk 0:02:56.1]}
5... Nf6 {[%clk 0:02:48.4]} 6. a3 {[%clk 0:02:55.8]} 6... Bf5 {[%clk 0:02:46.5]}
7. Nge2 {[%clk 0:02:54.9]} 7... Qd7 {[%clk 0:02:45.3]} 8. Ng3 {[%clk 0:02:54.9]}
8... Bg6 {[%clk 0:02:44.9]} 9. Bd3 {[%clk 0:02:54.9]} 9... O-O-O {[%clk
0:02:43.7]} 10. h4 {[%clk 0:02:22.4]} 10... h5 {[%clk 0:02:38.1]} 11. Bxg6
{[%clk 0:02:21.1]} 11... fxg6 {[%clk 0:02:38.6]} 12. Qd3 {[%clk 0:02:17.6]}
12... Qf7 {[%clk 0:02:30.7]} 13. O-O-O {[%clk 0:02:16.1]} 13... Ng4 {[%clk
0:02:24]} 14. Nge2 {[%clk 0:02:10.1]} 14... Bd6 {[%clk 0:02:17.4]} 15. Bg5
{[%clk 0:01:58.7]} 15... Rde8 {[%clk 0:02:16.9]} 16. Qb5 {[%clk 0:01:40.7]}
16... a6 {[%clk 0:02:10.4]} 17. Qb3 {[%clk 0:01:36.6]} 17... Rhf8 {[%clk
0:01:49.4]} 18. Rhf1 {[%clk 0:01:32.7]} 18... Na5 {[%clk 0:01:39.5]} 19. Qxd5
{[%clk 0:01:29.6]} 19... Qxd5 {[%clk 0:01:36.4]} 20. Nxd5 {[%clk 0:01:29.6]}
20... Rxe2 {[%clk 0:01:35.8]} 21. f3 {[%clk 0:01:21.7]} 21... Nh2 {[%clk
0:01:31.4]} 22. Rfe1 {[%clk 0:01:14.3]} 22... Rxg2 {[%clk 0:01:30.4]} 23. Be7
{[%clk 0:01:10.4]} 23... Re8 {[%clk 0:01:26.7]} 24. Bxd6 {[%clk 0:01:09.6]}
24... Rxe1 {[%clk 0:01:25.2]} 25. Rxe1 {[%clk 0:01:10.5]} 25... cxd6 {[%clk
0:01:25.4]} 26. Kb1 {[%clk 0:01:08]} 26... Nxf3 {[%clk 0:01:18.6]} 27. Re7
{[%clk 0:01:07.7]} 27... Nxd4 {[%clk 0:01:17]} 28. Nb6+ {[%clk 0:01:03.9]} 28...
Kb8 {[%clk 0:01:12.4]} 29. Re8+ {[%clk 0:00:52.7]} 29... Kc7 {[%clk 0:01:11.6]}
30. Nd5+ {[%clk 0:00:52.1]} 30... Kd7 {[%clk 0:01:10.3]} 31. Re7+ {[%clk
0:00:49.7]} 31... Kd8 {[%clk 0:01:10.6]} 32. Rxg7 {[%clk 0:00:45.5]} 32... Rg1+
{[%clk 0:01:08.4]} 33. Ka2 {[%clk 0:00:45.3]} 33... Nxc2 {[%clk 0:01:08.3]} 34.
b4 {[%clk 0:00:43.9]} 34... Nc4 {[%clk 0:00:57.3]} 35. Kb3 {[%clk 0:00:41.2]}
35... N2e3 {[%clk 0:00:56]} 36. Nf6 {[%clk 0:00:35.7]} 36... Ne5 {[%clk
0:00:51.3]} 37. Rxb7 {[%clk 0:00:33.9]} 37... Nf5 {[%clk 0:00:45.6]} 38. Ra7
{[%clk 0:00:28.3]} 38... Nxh4 {[%clk 0:00:41.2]} 39. Rxa6 {[%clk 0:00:28.5]}
39... Nf5 {[%clk 0:00:41.3]} 40. a4 {[%clk 0:00:22.9]} 40... h4 {[%clk
0:00:41.5]} 41. Ra8+ {[%clk 0:00:22]} 41... Kc7 {[%clk 0:00:40.7]} 42. Rh8
{[%clk 0:00:21.4]} 42... g5 {[%clk 0:00:40.3]} 43. b5 {[%clk 0:00:19.2]} 43...
Rb1+ {[%clk 0:00:37.7]} 44. Kc3 {[%clk 0:00:18]} 44... Ra1 {[%clk 0:00:37.7]}
45. Kb4 {[%clk 0:00:18.1]} 45... Nd3+ {[%clk 0:00:36.6]} 46. Kc3 {[%clk
0:00:18.1]} 46... Nc5 {[%clk 0:00:29.9]} 47. Nd5+ {[%clk 0:00:18.1]} 47... Kd7
{[%clk 0:00:28.5]} 48. Rh7+ {[%clk 0:00:17.2]} 48... Ke6 {[%clk 0:00:27.1]} 49.
Nc7+ {[%clk 0:00:15.4]} 49... Ke5 {[%clk 0:00:27.4]} 50. b6 {[%clk 0:00:13.4]}
50... Nxa4+ {[%clk 0:00:27.3]} 51. Kd3 {[%clk 0:00:09.3]} 51... Nxb6 {[%clk
0:00:27.7]} 52. Ke2 {[%clk 0:00:07.5]} 52... Ra2+ {[%clk 0:00:27.5]} 53. Kf3
{[%clk 0:00:06.8]} 53... Ra4 {[%clk 0:00:26.5]} 54. Rh8 {[%clk 0:00:04.8]} 54...
g4+ {[%clk 0:00:26.6]} 55. Kg2 {[%clk 0:00:04.8]} 55... Nd5 {[%clk 0:00:25.6]}
56. Re8+ {[%clk 0:00:04.3]} 56... Nde7 {[%clk 0:00:26.2]} 57. Rh8 {[%clk
0:00:03.1]} 57... Ra2+ {[%clk 0:00:26.4]} 58. Kg1 {[%clk 0:00:03.1]} 58... h3
{[%clk 0:00:26.9]} 59. Rh7 {[%clk 0:00:02.8]} 59... h2+ {[%clk 0:00:26.9]} 60.
Kh1 {[%clk 0:00:02.6]} 60... Ng3# {[%clk 0:00:27.1]} 0-1

[Event "*** SCC Grand Prix: Titled Tuesday Blitz"]
[Site "Chess.com"]
[Date "2020.07.14"]
[Round "3"]
[White "WashUntilHoles"]
[Black "guillembaches"]
[Result "1-0"]
[WhiteElo "2702"]
[BlackElo "2422"]
[TimeControl "180+1"]
[EndTime "10:29:31 PDT"]
[Termination "WashUntilHoles won on time"]

1. e4 {[%clk 0:03:00.9]} 1... c5 {[%clk 0:02:59.6]} 2. Nf3 {[%clk 0:02:58.8]}
2... d6 {[%clk 0:03:00]} 3. Bb5+ {[%clk 0:02:58]} 3... Bd7 {[%clk 0:02:59.6]} 4.
c4 {[%clk 0:02:57.3]} 4... Nf6 {[%clk 0:02:57.9]} 5. Nc3 {[%clk 0:02:57.5]} 5...
g6 {[%clk 0:02:56.9]} 6. d4 {[%clk 0:02:56.6]} 6... cxd4 {[%clk 0:02:56.7]} 7.
Nxd4 {[%clk 0:02:57.5]} 7... Bg7 {[%clk 0:02:56.4]} 8. O-O {[%clk 0:02:58]} 8...
O-O {[%clk 0:02:56.4]} 9. Qe2 {[%clk 0:02:56]} 9... a6 {[%clk 0:02:56.1]} 10.
Bxd7 {[%clk 0:02:55.5]} 10... Nfxd7 {[%clk 0:02:57]} 11. Be3 {[%clk 0:02:51.9]}
11... Nc6 {[%clk 0:02:56.6]} 12. Rad1 {[%clk 0:02:38.5]} 12... Rc8 {[%clk
0:02:49]} 13. b3 {[%clk 0:02:37]} 13... b5 {[%clk 0:02:37.7]} 14. Nd5 {[%clk
0:02:03.7]} 14... bxc4 {[%clk 0:02:25.6]} 15. bxc4 {[%clk 0:02:00.9]} 15... e6
{[%clk 0:02:11.5]} 16. Nxc6 {[%clk 0:01:59.9]} 16... Rxc6 {[%clk 0:02:12.4]} 17.
Nb4 {[%clk 0:02:00.5]} 17... Rc8 {[%clk 0:02:01.2]} 18. Rxd6 {[%clk 0:02:00.2]}
18... Qc7 {[%clk 0:02:01.5]} 19. Rxa6 {[%clk 0:00:43.6]} 19... Qxc4 {[%clk
0:01:56.7]} 20. Qxc4 {[%clk 0:00:39.8]} 20... Rxc4 {[%clk 0:01:57.6]} 21. Nc6
{[%clk 0:00:38.6]} 21... Rxe4 {[%clk 0:01:40.2]} 22. Rd1 {[%clk 0:00:38.6]}
22... Nb8 {[%clk 0:01:33]} 23. Nxb8 {[%clk 0:00:35.2]} 23... Rxb8 {[%clk
0:01:33.9]} 24. Ra7 {[%clk 0:00:32]} 24... Reb4 {[%clk 0:01:26.6]} 25. g3 {[%clk
0:00:29.9]} 25... Bc3 {[%clk 0:00:49]} 26. Rdd7 {[%clk 0:00:28.6]} 26... Rb1+
{[%clk 0:00:36.9]} 27. Kg2 {[%clk 0:00:28.3]} 27... Ra1 {[%clk 0:00:37.2]} 28.
a3 {[%clk 0:00:16]} 28... h5 {[%clk 0:00:24.7]} 29. Bc5 {[%clk 0:00:15.6]} 29...
Rb5 {[%clk 0:00:19.6]} 30. Be3 {[%clk 0:00:06.8]} 30... Rd5 {[%clk 0:00:19.1]}
31. Rxf7 {[%clk 0:00:06.5]} 31... Be5 {[%clk 0:00:08.6]} 32. Rfe7 {[%clk
0:00:06.3]} 32... Rd8 {[%clk 0:00:08.2]} 33. Bh6 {[%clk 0:00:06]} 33... Bb2
{[%clk 0:00:07.2]} 34. Be3 {[%clk 0:00:06.2]} 34... Rxa3 {[%clk 0:00:07.2]} 35.
Rab7 {[%clk 0:00:06.1]} 35... Bf6 {[%clk 0:00:06.3]} 36. Rxe6 {[%clk 0:00:05.7]}
36... Rf8 {[%clk 0:00:06.4]} 37. Bc5 {[%clk 0:00:05.1]} 37... Rf7 {[%clk
0:00:05.7]} 38. Rxf7 {[%clk 0:00:04.5]} 38... Kxf7 {[%clk 0:00:06.6]} 39. Rxf6+
{[%clk 0:00:05.4]} 39... Kxf6 {[%clk 0:00:06.3]} 40. Bxa3 {[%clk 0:00:06.3]}
40... Kf5 {[%clk 0:00:07.1]} 41. Bb2 {[%clk 0:00:07.2]} 41... Kg4 {[%clk
0:00:08]} 42. f3+ {[%clk 0:00:07.7]} 42... Kg5 {[%clk 0:00:07.8]} 43. h3 {[%clk
0:00:08.1]} 43... Kh6 {[%clk 0:00:08.7]} 44. g4 {[%clk 0:00:08.4]} 44... h4
{[%clk 0:00:08.8]} 45. f4 {[%clk 0:00:08.3]} 45... g5 {[%clk 0:00:09.7]} 46. f5
{[%clk 0:00:08.7]} 1-0